bitfinex/quotes_ETHUSD_20250623
["timestamp","ask_amount","ask_price","bid_price","bid_amount"]
[1750700389297,10.0,2284.4,2283.2,4.37976153]
[1750700389598,10.0,2284.0,2282.8,4.03163725]
[1750700389895,3.19,2285.2,2282.9,10.06]
[1750700390103,11.03232254,2285.5,2283.3,4.66]
[1750700390407,10.0,2285.2,2283.3,14.14814091]
[1750700390698,10.0,2284.8,2283.7,4.37885292]
[1750700390897,10.0,2284.8,2282.9,0.815]
[1750700391067,10.0,2284.8,2283.0,9.242]
[1750700391267,10.0,2284.8,2283.1,3.17754318]
[1750700391462,10.0,2284.9,2283.2,4.37981779]
[1750700391661,10.0,2284.9,2284.1,4.37799345]
[1750700391871,10.0,2284.9,2284.2,4.37785911]
[1750700392073,10.0,2285.3,2284.2,4.37787645]
[1750700392270,3.19,2285.4,2284.2,4.37787645]
[1750700392271,14.14814091,2286.3,2284.3,0.43778764]
[1750700392563,3.19,2286.3,2284.6,0.7767]
[1750700392763,10.0,2286.2,2284.7,9.238]
[1750700392991,17.33814091,2286.3,2284.9,4.37643005]
[1750700393166,10.0,2286.2,2284.9,4.3764645]
[1750700393369,14.14814091,2285.9,2284.3,0.43778764]
[1750700393671,14.14814091,2285.9,2284.8,4.37663044]
[1750700393893,14.14814091,2285.9,2284.7,9.239]
[1750700393894,10.0,2285.8,2284.7,9.239]
[1750700394075,2.73381409,2286.1,2284.7,9.239]
[1750700394076,2.73381409,2286.1,2285.1,4.37607871]
[1750700394271,2.73381409,2286.1,2284.7,13.6159131]
[1750700394272,3.19,2286.0,2285.0,4.37627688]
[1750700394667,3.19,2286.0,2284.7,9.239]
[1750700394867,10.0,2286.1,2284.7,9.239]
[1750700395202,3.19,2286.0,2284.5,4.37731164]
[1750700395364,3.19,2286.0,2285.0,4.37623548]
[1750700395565,5.92381409,2286.0,2285.0,4.37623548]
[1750700396268,3.191,2286.4,2284.8,9.235]
[1750700396497,14.51415564,2286.3,2284.3,0.43778764]
[1750700396673,10.36450847,2286.2,2285.0,4.37632812]
[1750700397001,0.36568204,2286.1,2284.9,4.37650024]
[1750700397668,0.36568204,2286.1,2284.8,13.60768763]
[1750700397982,2.81706433,2286.1,2284.8,4.37672807]
[1750700398318,2.81706433,2286.1,2285.0,4.37620977]
[1750700398464,2.81706433,2286.1,2284.8,9.23]
[1750700398668,2.81706433,2286.1,2283.6,0.759]
[1750700398669,10.0,2285.8,2283.6,0.759]
[1750700398871,10.0,2285.5,2283.8,9.227]
[1750700399118,0.36418332,2285.4,2283.8,9.227]
[1750700399279,0.36418332,2285.4,2283.8,13.60563435]
[1750700399465,0.36418332,2285.4,2284.2,4.37789428]
[1750700399670,14.14814091,2285.2,2283.8,4.37855092]
[1750700399895,14.14814091,2285.2,2283.6,0.759]
[1750700399896,10.36269955,2285.1,2283.6,4.37905062]
[1750700400063,10.0,2284.9,2283.4,3.191]
[1750700400266,0.36269955,2284.8,2283.6,4.37905062]
[1750700400468,0.36269955,2284.8,2283.9,4.37847541]
[1750700400665,0.36269955,2284.8,2284.7,4.37694226]
[1750700400869,0.36269955,2284.8,2284.3,4.37758297]
[1750700401103,0.36269955,2284.8,2283.8,18.52669212]
[1750700401104,0.36269955,2284.8,2284.2,9.222]
[1750700401289,0.36269955,2284.8,2284.6,4.37709648]
[1750700401488,0.36269955,2284.8,2284.7,4.37694226]
[1750700401772,17.33914091,2287.1,2284.7,15.84864579]
[1750700402081,10.0,2286.6,2284.9,4.37655914]
[1750700402392,10.0,2286.2,2284.9,9.22]
[1750700402591,17.33914091,2286.3,2285.0,4.37636761]
[1750700402792,10.0,2285.8,2284.6,9.219]
[1750700402969,10.0,2285.8,2284.7,4.37685446]
[1750700403170,2.41481409,2285.7,2284.6,13.59606725]
[1750700403396,10.0,2286.4,2284.6,9.219]
[1750700403671,10.0,2285.8,2284.6,9.219]
[1750700403993,10.0,2285.4,2284.1,4.37798639]
[1750700404192,3.191,2285.3,2284.1,13.59398639]
[1750700404571,10.0,2285.2,2284.1,9.216]
[1750700404766,15.46724091,2285.1,2284.1,9.216]
[1750700404969,10.0,2285.0,2284.1,9.216]
[1750700405418,10.0,2285.0,2283.8,4.37856037]
[1750700405569,10.0,2285.0,2283.6,24.10597056]
[1750700405570,10.0,2285.0,2284.2,4.37789127]
[1750700405924,24.14814091,2285.0,2283.9,4.37845853]
[1750700406148,10.0,2284.8,2283.2,0.7977]
[1750700406295,10.0,2284.5,2283.2,4.37981779]
[1750700406488,10.0,2284.5,2283.6,4.37900988]
[1750700406834,10.0,2284.8,2283.1,9.211]
[1750700407128,10.0,2285.7,2283.9,5.15694649]
[1750700407281,1.3191,2285.6,2284.5,4.37721425]
[1750700407489,10.0,2285.7,2284.6,4.37696873]
[1750700407721,3.191,2285.8,2284.7,4.37691795]
[1750700407995,3.191,2285.8,2284.4,3.191]
[1750700407996,10.0,2285.5,2284.4,13.58435093]
[1750700408318,10.0,2285.1,2284.0,1.93050874]
[1750700408522,10.0,2285.1,2283.8,3.191]
[1750700408523,14.14814091,2284.7,2283.8,3.191]
[1750700408733,12.41481409,2285.1,2283.0,4.38015564]
[1750700408734,10.0,2284.2,2283.0,4.38015564]
[1750700408939,10.0,2284.2,2282.7,3.191]
[1750700408940,10.0,2284.0,2282.7,3.191]
[1750700409236,10.0,2283.4,2282.2,19.723]
[1750700409434,13.191,2283.4,2282.2,9.206]
[1750700409635,0.55,2283.1,2282.0,4.38203048]
[1750700409785,0.55,2283.1,2281.9,13.58728788]
[1750700410121,0.55,2283.3,2281.9,9.205]
[1750700410320,0.55,2283.3,2282.2,3.193]
[1750700410642,0.55,2283.3,2282.4,9.206]
[1750700410848,0.55,2283.3,2282.3,9.206]
[1750700410985,10.55,2283.6,2282.3,9.206]
[1750700411185,11.58254608,2283.6,2282.7,4.38075676]
[1750700411391,11.58254608,2283.6,2282.6,4.38090624]
[1750700411634,1.03254608,2283.6,2282.6,5.16672802]
[1750700411836,1.03449611,2283.7,2282.8,4.95147378]
[1750700412003,4.22742896,2284.1,2283.0,4.38018991]
[1750700412201,4.22742896,2284.1,2282.8,9.33193237]
[1750700412202,0.55,2283.9,2282.8,4.95147378]
[1750700412523,0.55,2283.6,2282.8,4.03163725]
[1750700412887,14.14814091,2283.4,2282.8,4.03163725]
[1750700413121,13.00139124,2283.3,2282.8,4.03163725]
[1750700413320,1.03657715,2283.2,2282.8,4.03163725]
[1750700413914,11.03752971,2283.4,2282.8,4.03163725]
[1750700414124,0.55,2283.3,2282.8,4.03163725]
[1750700414324,1.03752971,2283.2,2282.8,4.03163725]
[1750700414524,1.03752971,2283.1,2282.8,4.03163725]
[1750700414747,1.03752971,2283.3,2282.8,4.03163725]
[1750700414894,1.03752971,2283.2,2282.8,4.03163725]
[1750700415236,1.03752971,2283.1,2282.8,4.03163725]
[1750700415541,10.0,2283.4,2282.8,4.03163725]
[1750700415542,0.55,2283.2,2282.8,4.03163725]
[1750700415740,0.55,2282.9,2282.8,4.03163725]
[1750700415923,14.16109677,2282.9,2282.8,4.03163725]
[1750700416235,11.03752971,2282.9,2282.8,4.03163725]
[1750700416446,10.0,2282.9,2282.8,4.03163725]
[1750700416602,11.58752971,2282.9,2282.8,4.03163725]
[1750700416803,10.55,2282.8,2281.7,4.38257321]
[1750700417005,0.55,2282.6,2281.6,4.38278562]
[1750700417202,1.58752971,2282.6,2281.5,9.194]
[1750700417425,0.55,2282.6,2281.5,13.5769922]
[1750700417733,0.55,2282.6,2281.4,4.38325322]
[1750700417734,0.55,2282.4,2281.4,4.38325322]
[1750700417935,1.15875297,2282.3,2281.4,4.38325322]
[1750700418249,1.15875297,2282.3,2281.0,0.2245122]
[1750700418397,3.194,2283.1,2281.6,0.7954]
[1750700418622,10.0,2283.0,2282.1,4.38177102]
[1750700418959,3.194,2283.1,2281.8,4.38250503]
[1750700419165,1.03597995,2283.4,2282.5,4.38103528]
[1750700419473,1.03597995,2283.4,2281.6,10.7954]
[1750700419474,11.155698,2283.3,2282.3,9.19]
[1750700419677,10.0,2283.3,2282.4,4.38122595]
[1750700419853,11.03553572,2283.3,2282.4,4.38122595]
[1750700420055,1.03553572,2283.3,2282.1,4.38183983]
[1750700420277,11.03553572,2283.3,2282.0,9.189]
[1750700420575,0.55,2283.2,2282.3,4.3814464]
[1750700420758,3.12336766,2283.2,2282.2,4.38163404]
[1750700420962,4.15890338,2283.2,2282.1,4.38183433]
[1750700421127,4.15890338,2283.2,2282.0,9.187]
[1750700421329,4.15890338,2283.2,2282.1,4.38192892]
[1750700421538,0.55,2283.0,2282.0,9.187]
[1750700421835,10.55,2282.5,2281.2,0.7785]
[1750700422178,11.58517893,2282.5,2281.2,4.38364242]
[1750700422464,11.58517893,2282.5,2281.0,4.60842977]
[1750700422465,10.55,2282.1,2281.0,13.79253535]
[1750700422655,14.73167979,2282.1,2281.0,0.2245122]
[1750700424668,0.55,2281.7,2281.0,0.2245122]
[1750700424867,1.03363689,2281.9,2281.2,4.38354207]
[1750700424868,3.147,2281.9,2281.2,4.38354207]
[1750700425161,10.0,2281.8,2281.2,4.38363606]
[1750700425463,13.698,2282.3,2281.0,0.2245122]
[1750700425669,10.0,2282.1,2281.1,4.38377204]
[1750700425869,0.52,2283.5,2281.4,10.7848]
[1750700426166,14.14814091,2283.5,2281.8,0.7848]
[1750700426344,10.0,2283.4,2282.4,4.38124463]
[1750700426546,10.0,2283.4,2282.4,4.38123598]
[1750700426755,2.41481409,2283.3,2282.5,4.38115924]
[1750700427061,2.41481409,2283.3,2282.6,4.38096297]
[1750700427276,2.41481409,2283.3,2281.8,0.7848]
[1750700427567,2.41481409,2283.3,2282.3,9.177]
[1750700427870,14.14814091,2283.5,2282.3,9.177]
[1750700427871,24.14814091,2283.8,2282.3,13.55850183]
[1750700428166,0.55,2283.6,2282.4,4.38125989]
[1750700428368,1.03402596,2283.7,2282.3,9.177]
[1750700428867,10.0,2283.8,2282.3,9.177]
[1750700429087,10.0,2283.8,2282.3,4.38136155]
[1750700429088,10.0,2283.5,2282.3,4.38136155]
[1750700429233,0.55,2283.4,2282.3,4.38138686]
[1750700429657,0.55,2283.4,2282.3,4.38151602]
[1750700429871,10.55,2283.1,2281.7,4.38255956]
[1750700430030,10.55,2283.1,2281.2,10.528]
[1750700430031,0.55,2282.6,2281.2,9.169]
[1750700430230,10.0,2282.3,2281.7,4.38264729]
[1750700430536,10.55,2282.6,2281.4,4.38308429]
[1750700430732,11.03581256,2282.6,2281.3,0.99768]
[1750700431065,4.73377969,2282.5,2281.4,9.167]
[1750700431264,10.0,2282.2,2281.2,9.166]
[1750700431438,10.0,2282.2,2281.0,4.60846733]
[1750700431439,11.03599355,2282.2,2281.0,4.60846733]
[1750700431643,11.03599355,2282.2,2281.0,0.2245122]
[1750700431873,11.03599355,2282.2,2281.0,4.60853531]
[1750700432193,10.63837797,2282.4,2281.0,0.2245122]
[1750700432194,10.0,2281.8,2281.0,0.2245122]
[1750700432353,10.0,2281.6,2281.0,0.2245122]
[1750700432553,11.03599355,2281.6,2281.0,0.2245122]
[1750700433066,1.3786378,2282.3,2281.3,4.3833477]
[1750700433067,11.3786378,2282.3,2281.3,4.3833477]
[1750700433250,10.0,2282.0,2281.0,0.2245122]
[1750700433438,1.03782057,2281.9,2281.0,0.2245122]
[1750700433637,1.03782057,2282.0,2281.0,9.3855122]
[1750700433841,1.03782057,2281.9,2281.0,13.76953079]
[1750700434054,1.03782057,2282.0,2281.2,4.38351389]
[1750700434280,1.03782057,2281.9,2281.2,4.38351389]
[1750700434578,1.03782057,2281.9,2281.0,9.3855122]
[1750700434750,1.03782057,2282.1,2281.2,4.38355218]
[1750700434954,1.03782057,2282.0,2281.2,4.38355218]
[1750700435155,1.03782057,2281.9,2281.3,9.159]
[1750700435356,1.03782057,2281.8,2281.2,4.38365211]
[1750700435576,1.03782057,2282.3,2281.3,4.38344568]
[1750700435780,2.45640263,2282.2,2281.0,0.2245122]
[1750700436074,1.03782057,2282.1,2281.0,13.76546796]
[1750700436280,11.03782057,2282.0,2281.0,0.2245122]
[1750700436479,10.0,2281.6,2281.0,0.2245122]
[1750700436682,14.14814091,2281.7,2281.0,0.2245122]
[1750700436683,10.0,2281.4,2281.0,0.2245122]
[1750700436847,16.60454354,2281.3,2281.0,0.2245122]
[1750700437044,1.03782057,2281.2,2281.0,0.2245122]
[1750700437250,1.03782057,2281.1,2281.0,0.2245122]
[1750700438088,15.18596148,2281.1,2281.0,0.2245122]
[1750700438351,15.18596148,2281.1,2279.2,13.678]
[1750700438352,10.0,2281.0,2279.2,13.678]
[1750700438646,10.0,2280.5,2279.3,5.83818552]
[1750700438847,14.14814091,2280.2,2279.1,13.53858049]
[1750700439048,11.03782057,2280.1,2278.8,0.7574]
[1750700439257,1.03782057,2280.0,2279.1,4.38769591]
[1750700439477,1.03782057,2279.9,2279.1,4.38769591]
[1750700439688,1.03782057,2279.8,2278.9,13.537973]
[1750700439847,1.03782057,2279.7,2278.9,4.3879778]
[1750700440196,11.03782057,2279.6,2278.7,0.2245122]
[1750700440411,1.03782057,2279.5,2278.7,0.2245122]
[1750700440545,3.149,2279.7,2278.7,0.2245122]
[1750700440546,1.03782057,2279.4,2278.7,0.2245122]
[1750700440749,3.15,2280.6,2279.3,4.38731189]
[1750700441061,33.82914091,2281.1,2279.5,0.8167]
[1750700441062,1.0408056,2280.5,2279.5,0.8167]
[1750700441371,1.0408056,2280.8,2280.1,4.38568154]
[1750700441572,0.7908056,2281.0,2280.2,4.3855776]
[1750700441870,10.0,2281.0,2280.1,4.38566317]
[1750700442076,10.534,2281.1,2280.1,4.38559933]
[1750700442280,10.0,2281.0,2280.3,4.38534411]
[1750700442479,10.0,2281.0,2279.9,13.53215728]
[1750700442480,10.534,2281.1,2280.1,4.38558669]
[1750700442678,10.0,2281.0,2279.9,9.146]
[1750700442856,10.0,2281.0,2279.6,3.15]
[1750700442857,10.0,2281.0,2279.7,4.38639007]
[1750700443057,10.0,2281.0,2279.6,4.38655482]
[1750700443253,14.14814091,2280.7,2279.5,0.8167]
[1750700443588,10.0,2280.6,2279.1,14.29691926]
[1750700443882,10.0,2280.6,2279.3,4.38727152]
[1750700444089,10.0,2280.6,2279.5,4.38690614]
[1750700444285,10.0,2280.6,2279.2,4.38750438]
[1750700444490,2.41481409,2280.5,2279.2,4.38743111]
[1750700444806,10.0,2280.3,2279.3,4.38728274]
[1750700444985,10.0,2280.3,2279.1,13.53061409]
[1750700444986,10.0,2280.3,2279.4,4.38703204]
[1750700445159,10.0,2280.3,2279.1,9.143]
[1750700445352,10.0,2280.3,2279.2,4.38743977]
[1750700445547,1.315,2280.2,2279.1,13.53061624]
[1750700445752,1.315,2280.2,2278.8,0.7804]
[1750700445953,1.315,2280.2,2278.9,4.38795812]
[1750700446257,1.315,2280.2,2278.8,9.9184]
[1750700446602,15.56481409,2280.5,2278.8,9.9184]
[1750700446805,15.56481409,2280.5,2279.7,4.38653286]
[1750700446982,13.15,2280.5,2279.4,9.136]
[1750700447153,13.15,2280.5,2279.7,4.38644566]
[1750700447358,13.15,2280.5,2279.7,4.3864346]
[1750700447554,17.931355,2280.9,2280.0,4.38585761]
[1750700447755,3.151,2280.8,2280.0,4.38584832]
[1750700448062,3.151,2280.8,2280.0,0.43858483]
[1750700448263,3.151,2280.8,2279.7,9.134]
[1750700448471,10.0,2280.7,2280.1,4.38558082]
[1750700448680,3.151,2280.8,2280.3,4.38529879]
[1750700448874,3.151,2280.8,2279.7,9.134]
[1750700448875,13.685,2281.1,2280.2,4.38549007]
[1750700449188,10.534,2281.1,2279.7,9.134]
[1750700449367,10.534,2281.1,2280.3,4.38529637]
[1750700449567,10.534,2281.1,2279.8,10.0454]
[1750700449568,10.534,2281.1,2280.5,4.38491272]
[1750700449887,10.534,2281.1,2280.6,4.38468595]
[1750700450109,14.14814091,2281.7,2280.2,0.784]
[1750700450336,3.102,2281.6,2280.8,4.38441961]
[1750700450617,3.102,2282.0,2281.0,4.38394706]
[1750700450820,10.0,2281.9,2280.2,0.784]
[1750700450970,10.0,2281.5,2280.4,4.38507903]
[1750700451167,10.0,2281.5,2280.2,0.784]
[1750700451168,10.0,2281.5,2280.3,4.38538788]
[1750700451405,9.127,2281.9,2280.4,1.42963879]
[1750700451709,10.0,2281.1,2280.0,9.126]
[1750700452002,14.14814091,2281.2,2280.0,9.126]
[1750700452003,10.0,2280.9,2280.0,9.126]
[1750700452324,10.0,2280.7,2279.9,4.38604266]
[1750700452671,10.0,2280.9,2280.0,4.38588203]
[1750700452871,10.0,2280.9,2279.7,4.38645954]
[1750700453070,1.3102,2280.8,2279.8,4.38622214]
[1750700453268,1.3102,2280.8,2279.9,4.3861266]
[1750700453592,1.3102,2280.8,2279.7,10.47304595]
[1750700453768,16.49798698,2280.8,2279.8,9.121]
[1750700454102,10.0,2281.1,2280.0,4.38581891]
[1750700454285,11.03974577,2281.1,2280.0,4.38577959]
[1750700454602,11.03974577,2281.1,2279.9,4.38606343]
[1750700454983,14.14814091,2281.0,2279.8,13.50431183]
[1750700455185,14.14814091,2281.0,2279.3,0.7625]
[1750700455186,11.03974577,2280.9,2279.3,3.8645]
[1750700455386,2.45455986,2280.9,2279.4,9.94220041]
[1750700455710,10.537,2281.4,2279.4,9.94220041]
[1750700455711,25.18788668,2281.1,2279.4,9.94220041]
[1750700456002,10.0,2280.9,2280.1,4.38566012]
[1750700456223,11.03974577,2280.9,2280.2,4.38553662]
[1750700456427,11.03974577,2280.9,2280.1,4.38567447]
[1750700456586,11.03974577,2280.9,2280.2,4.38556572]
[1750700456999,13.86873444,2280.9,2280.0,4.38587647]
[1750700457229,12.82898867,2280.9,2280.1,4.38575683]
[1750700457427,1.04128084,2280.8,2279.9,4.38605781]
[1750700457625,1.04128084,2280.8,2280.1,4.38576293]
[1750700457827,10.0,2281.3,2280.1,5.26285074]
[1750700458125,3.102,2281.1,2280.0,4.38589057]
[1750700458323,1.04121405,2281.0,2280.1,4.38568543]
[1750700458521,1.04121405,2280.9,2280.1,4.38573788]
[1750700458731,1.04121405,2281.0,2279.9,9.109]
[1750700458913,1.04121405,2281.0,2279.3,0.7625]
[1750700458914,1.04121405,2280.9,2279.3,0.7625]
[1750700459086,2.56014955,2280.8,2279.4,5.2122802]
[1750700459287,10.0,2280.5,2279.3,4.38723011]
[1750700459598,1.04121405,2280.4,2279.2,9.107]
[1750700459815,1.04121405,2280.3,2279.3,13.49223459]
[1750700460024,1.04121405,2280.2,2279.3,4.38723459]
[1750700460224,1.04121405,2280.1,2279.3,4.38723459]
[1750700460520,13.102,2280.5,2279.3,4.38723459]
[1750700460521,1.04121405,2280.0,2279.4,4.38710819]
[1750700460690,1.04121405,2280.4,2279.2,9.105]
[1750700460893,2.45553546,2280.3,2279.2,13.4923908]
[1750700461101,1.04121405,2280.2,2279.2,9.105]
[1750700461435,10.0,2279.7,2278.7,6.47006267]
[1750700461637,10.0,2279.3,2278.7,0.2245122]
[1750700461795,4.14421405,2279.2,2278.7,0.2245122]
[1750700461995,11.04121405,2279.1,2278.7,0.2245122]
[1750700462197,10.0,2278.9,2278.7,0.2245122]
[1750700462437,11.04121405,2278.9,2278.7,0.2245122]
[1750700462649,1.04121405,2278.8,2278.7,0.2245122]
[1750700463429,10.538,2279.9,2278.7,0.2245122]
[1750700463430,10.0,2279.2,2278.7,0.2245122]
[1750700463591,10.0,2279.0,2278.7,0.2245122]
[1750700463793,18.29235496,2278.9,2278.7,0.2245122]
[1750700464091,11.04121405,2278.8,2278.7,0.2245122]
[1750700464721,14.14421405,2278.8,2278.7,0.2245122]
[1750700465728,11.04121405,2278.8,2278.7,0.2245122]
[1750700465936,3.103,2279.2,2278.7,0.2245122]
[1750700466430,10.0,2279.1,2278.7,0.2245122]
[1750700466626,11.04249098,2279.1,2278.7,0.2245122]
[1750700467134,10.0,2278.7,2278.0,0.005]
[1750700467338,10.0,2278.2,2278.0,0.005]
[1750700467515,13.104,2278.1,2278.0,0.005]
[1750700467718,11.04249098,2278.1,2278.0,0.005]
[1750700468094,10.0,2278.1,2278.0,0.005]
[1750700468635,11.04093378,2278.1,2278.0,0.005]
[1750700468822,25.18907469,2278.1,2278.0,0.005]
[1750700469023,28.92728216,2278.1,2278.0,0.005]
[1750700469219,10.0,2278.1,2278.0,0.005]
[1750700469736,3.5185491,2279.2,2278.1,0.7577]
[1750700470047,14.14814091,2278.9,2278.0,0.005]
[1750700470331,10.0,2278.4,2278.0,0.005]
[1750700470532,10.0,2278.2,2278.0,0.005]
[1750700470734,1.3104,2278.1,2278.0,0.005]
[1750700471236,11.03924829,2278.2,2278.0,0.005]
[1750700471445,3.105,2278.1,2278.0,0.005]
[1750700472109,27.25314091,2278.1,2278.0,0.005]
[1750700472312,37.37454445,2278.1,2278.0,0.005]
[1750700472931,37.92254445,2278.1,2278.0,0.005]
[1750700473138,28.18004876,2278.1,2278.0,0.005]
[1750700473903,15.99504876,2278.1,2278.0,0.005]
[1750700474221,11.03840354,2278.1,2278.0,0.005]
[1750700474420,3.105,2279.0,2278.0,0.005]
[1750700474618,3.105,2279.0,2278.0,0.8173]
[1750700474878,3.105,2279.2,2278.1,4.38943709]
[1750700475145,10.55,2279.1,2278.0,0.8173]
[1750700475351,10.0,2278.9,2278.0,0.8173]
[1750700475502,24.59164091,2279.0,2278.0,0.8173]
[1750700475698,0.55,2278.9,2278.0,0.8173]
[1750700475937,0.55,2278.7,2278.0,0.8173]
[1750700476249,10.0,2278.7,2278.0,0.8173]
[1750700476445,13.105,2278.9,2278.0,1.33852414]
[1750700476598,13.105,2278.9,2278.0,0.52622414]
[1750700476799,15.51364091,2279.0,2278.0,0.52622414]
[1750700476800,1.3655,2279.0,2278.0,0.005]
[1750700477002,10.0,2278.7,2278.0,0.005]
[1750700477230,10.0,2278.7,2278.0,4.39475075]
[1750700477444,10.0,2278.7,2278.0,0.005]
[1750700477935,3.105,2279.0,2278.2,4.38929514]
[1750700478098,3.105,2279.0,2278.4,0.7566]
[1750700478533,10.0,2278.9,2278.4,0.7566]
[1750700478744,3.105,2279.0,2278.4,1.27117284]
[1750700478951,14.14814091,2279.6,2278.4,1.27117284]
[1750700479134,10.0,2279.3,2278.4,5.14551251]
[1750700479337,10.0,2279.3,2278.5,4.38883234]
[1750700479536,10.0,2279.3,2278.4,5.14555376]
[1750700479915,10.0,2279.3,2278.4,0.7566]
[1750700480451,10.0,2279.3,2278.6,4.38857537]
[1750700480629,10.0,2279.3,2278.5,4.3887574]
[1750700480945,10.546,2279.4,2278.5,0.95344654]
[1750700481131,10.546,2279.4,2278.4,5.14553775]
[1750700481326,10.0,2279.3,2278.4,5.14558721]
[1750700481506,10.0,2279.3,2278.4,5.14554961]
[1750700481706,10.0,2279.3,2278.4,5.14553024]
[1750700481944,10.0,2279.3,2278.5,4.38883897]
[1750700482242,10.0,2279.3,2278.5,4.90338287]
[1750700482408,10.0,2279.3,2278.6,4.38859699]
[1750700482610,10.0,2279.3,2278.6,4.38865638]
[1750700483034,14.14814091,2280.0,2278.9,4.38796248]
[1750700483226,1.03863101,2279.9,2279.0,4.38788707]
[1750700483423,3.056,2280.0,2279.1,0.8198]
[1750700483629,3.056,2280.0,2279.2,4.38749713]
[1750700483953,10.546,2280.4,2279.3,4.38722784]
[1750700483954,13.602,2280.4,2279.3,4.38722784]
[1750700484253,11.03896054,2280.3,2279.4,4.38703173]
[1750700484549,1.03896054,2280.3,2279.5,4.38675495]
[1750700484851,3.056,2280.7,2279.8,0.8043]
[1750700485052,4.09535823,2280.8,2279.9,4.38614719]
[1750700485262,3.056,2280.8,2279.9,4.3860192]
[1750700485474,3.056,2280.8,2279.8,0.8043]
[1750700485621,1.03935823,2281.0,2279.8,1.32340041]
[1750700485820,10.0,2280.8,2279.8,5.70961827]
[1750700486141,0.55,2280.7,2279.4,1.25420317]
[1750700486327,1.58935823,2280.7,2279.6,4.38661823]
[1750700486651,0.55,2280.4,2279.4,1.25420317]
[1750700486855,10.55,2280.2,2279.0,0.8155]
[1750700487039,10.55,2280.2,2279.0,5.20331605]
[1750700487356,10.55,2280.2,2279.0,0.8155]
[1750700487357,10.55,2280.0,2279.0,0.8155]
[1750700487541,10.55,2280.0,2278.5,3.055]
[1750700487542,10.55,2279.8,2278.5,0.8216]
[1750700487717,10.0,2279.6,2278.5,0.8216]
[1750700487917,0.55,2279.3,2278.0,0.005]
[1750700488126,0.55,2279.3,2278.1,0.8216]
[1750700488419,0.55,2279.3,2278.1,5.21113028]
[1750700488619,0.55,2279.3,2278.1,5.21113627]
[1750700488851,0.55,2279.3,2278.1,0.8216]
[1750700489157,10.55,2279.1,2278.1,0.8216]
[1750700489471,10.55,2278.9,2278.1,5.21111366]
[1750700489958,15.30721966,2279.2,2278.1,0.8216]
[1750700490267,1.043375,2279.1,2278.1,0.8216]
[1750700490422,11.15907875,2279.2,2278.2,4.38926607]
[1750700490628,2.07574538,2279.1,2278.1,5.21107145]
[1750700490824,3.1193113,2279.1,2278.3,4.38923326]
[1750700491023,3.1193113,2279.1,2278.2,4.38943025]
[1750700491024,2.5693113,2279.1,2278.2,4.38943025]
[1750700491253,1.52574538,2279.1,2278.1,5.21111987]
[1750700491556,0.55,2279.0,2278.1,0.8216]
[1750700491739,11.97785705,2279.0,2278.1,5.21113346]
[1750700492048,1.15907875,2279.2,2278.1,0.8216]
[1750700492416,0.55,2279.1,2278.1,0.8216]
[1750700492726,0.55,2279.1,2278.2,4.38927018]
[1750700492927,0.55,2279.1,2278.1,5.21113149]
[1750700493352,0.55,2278.9,2277.6,4.30044733]
[1750700493515,0.55,2278.9,2277.3,10.544]
[1750700493516,0.55,2278.6,2277.5,0.7568]
[1750700493827,1.59373847,2278.6,2277.5,0.7568]
[1750700494259,3.055,2278.5,2277.5,0.7568]
[1750700494419,0.55,2278.3,2277.5,0.7568]
[1750700494841,1.04373847,2278.4,2277.5,0.7568]
[1750700495040,1.04390069,2278.6,2277.6,4.39058658]
[1750700495321,1.04390069,2278.6,2277.5,0.7568]
[1750700495322,10.0,2279.0,2277.7,0.51473866]
[1750700495542,11.04379439,2279.0,2278.1,4.38951931]
[1750700495742,10.0,2279.1,2278.2,4.38924465]
[1750700496057,0.55,2279.0,2278.2,4.38934292]
[1750700496220,10.0,2279.1,2277.9,9.028]
[1750700496420,10.0,2279.1,2278.0,1.28344]
[1750700496622,0.55,2279.0,2278.0,1.28344]
[1750700496960,14.14814091,2279.6,2278.0,1.28344]
[1750700497142,1.04362263,2279.5,2278.7,4.38844599]
[1750700497343,10.0,2279.5,2278.6,4.38857843]
[1750700497572,11.04362263,2279.5,2278.6,6.16882772]
[1750700497770,1.04362263,2279.5,2278.7,4.38846611]
[1750700497942,17.20314091,2280.0,2278.8,0.7629]
[1750700498136,1.0436267,2279.9,2278.8,0.7629]
[1750700498336,10.0,2279.6,2278.6,1.78024929]
[1750700498572,10.0,2279.6,2278.6,6.16884903]
[1750700498794,10.0,2279.6,2278.8,4.38824886]
[1750700498988,0.55,2279.9,2278.6,6.1688164]
[1750700499203,10.0,2279.6,2278.6,6.1688164]
[1750700499340,11.04382669,2279.6,2278.6,6.1688164]
[1750700499694,11.04382669,2279.6,2278.7,4.38845723]
[1750700499850,0.55,2279.5,2278.5,0.8127]
[1750700500053,1.59382669,2279.5,2278.5,0.8127]
[1750700500294,1.04382669,2279.5,2278.5,0.8127]
[1750700500600,15.51938267,2279.6,2278.5,0.8127]
[1750700500882,15.51938267,2279.6,2278.5,1.72779118]
[1750700501384,10.0,2279.8,2279.1,4.38769236]
[1750700501586,11.04444601,2279.8,2279.1,4.38769236]
[1750700501775,10.0,2279.8,2279.1,4.38762233]
[1750700501972,10.55,2279.9,2278.8,9.013]
[1750700502172,11.59446875,2279.9,2278.9,4.38793813]
[1750700502490,1.04446875,2279.9,2278.9,0.43879381]
[1750700502790,10.0,2279.9,2279.0,4.38779914]
[1750700503081,1.04446875,2279.9,2279.1,4.38766863]
[1750700503261,10.0,2279.9,2279.1,4.38766863]
[1750700503462,11.04446875,2279.9,2279.1,4.38766863]
[1750700503665,11.04446875,2279.9,2279.2,4.38749776]
[1750700503965,11.04446875,2279.9,2279.1,4.38759884]
[1750700504176,11.04446875,2279.9,2279.1,4.38754836]